[Event "DVM U10 2024"]
[Site "Duesseldorf"]
[Date "2024.12.28"]
[Round "5"]
[White "Ragavendra Prasanna, Shyam Sundar"]
[Black "Zhu, Elias"]
[Result "0-1"]
[ECO "D02"]
[WhiteElo "1524"]
[BlackElo "934"]
[Annotator "NA RC"]
[PlyCount "88"]
[EventDate "2024.12.23"]
[EventType "team-tourn"]
[EventRounds "7"]
[EventCountry "GER"]
[SourceTitle "playchess.com"]
[Source "ChessBase"]
[SourceQuality "1"]
[TimeControl "3300+5"]

1. d4 {[%emt 0:00:02]} d5 {[%emt 0:00:05]} 2. Bf4 {[%emt 0:00:05]} Nc6 {[%emt 0:00:09]} 3. Nf3 {[%emt 0:00:07]} Nf6 {[%emt 0:00:12]} 4. e3 {[%emt 0:00:17]} Bf5 {[%emt 0:00:31]} 5. a3 {[%emt 0:00:17]} h6 {[%emt 0:00:19]} 6. c4 {[%emt 0:00:12]} e6 {[%emt 0:00:19]} 7. Qb3 {[%emt 0:00:43]} b6 {[%emt 0:00:51]} 8. Nc3 {[%emt 0:00:15]} Be7 {[%emt 0:00:29]} 9. cxd5 {[%emt 0:00:13]} exd5 {[%emt 0:00:13]} 10. Bb5 {[%emt 0:00:17]} Qd7 {[%emt 0:00:48]} 11. Ne5 {[%emt 0:00:10]} Qc8 {[%emt 0:01:48]} 12. Nxc6 {[%emt 0:00:15]} Bd7 {[%emt 0:03:37]} 13. Nxd5 {[%emt 0:00:42]} Bd6 {[%emt 0:06:41]} 14. Bxd6 {[%emt 0:01:18]} cxd6 {[%emt 0:00:22]} 15. Rc1 {[%emt 0:00:21]} a6 {[%emt 0:04:19]} 16. Nxb6 {[%emt 0:00:53]} Qb7 {[%emt 0:00:53]} 17. Nxa8 {[%emt 0:00:38]} Qxa8 {[%emt 0:00:10]} 18. Qd5 {[%emt 0:00:25]} Nxd5 {[%emt 0:00:35]} 19. O-O {[%emt 0:00:54]} axb5 {[%emt 0:00:18]} 20. Nb4 {[%emt 0:01:24]} Nxb4 {[%emt 0:00:28]} 21. axb4 {[%emt 0:00:18]} Qb7 {[%emt 0:00:10]} 22. e4 {[%emt 0:00:25]} O-O {[%emt 0:00:09]} 23. d5 {[%emt 0:00:33]} Re8 {[%emt 0:00:20]} 24. f3 {[%emt 0:00:14]} Qb6+ {[%emt 0:00:24]} 25. Kh1 {[%emt 0:00:11]} Rc8 {[%emt 0:00:22]} 26. Ra1 {[%emt 0:00:21]} Qb7 {[%emt 0:02:46]} 27. Rad1 {[%emt 0:00:43]} Rc2 {[%emt 0:00:16]} 28. f4 {[%emt 0:00:30]} f6 {[%emt 0:00:23]} 29. Rd3 {[%emt 0:00:22]} Rxb2 {[%emt 0:00:15]} 30. e5 {[%emt 0:00:36]} dxe5 {[%emt 0:00:09]} 31. fxe5 {[%emt 0:00:10]} fxe5 {[%emt 0:00:08]} 32. Rg3 {[%emt 0:00:39]} Qxd5 {[%emt 0:00:28]} 33. Rg1 {[%emt 0:00:35]} Bc6 {[%emt 0:00:42]} 34. Rg6 {[%emt 0:00:20]} Kh7 {[%emt 0:00:46]} 35. Rg4 {[%emt 0:00:26]} h5 {[%emt 0:01:02]} 36. Rg5 {[%emt 0:00:00]} Kh6 {[%emt 0:00:13]} 37. h4 {[%emt 0:00:10]} Qe4 {[%emt 0:00:55]} 38. Rg3 {[%emt 0:00:07]} Qxh4+ {[%emt 0:00:39]} 39. Rh3 {[%emt 0:00:24]} Qf2 {[%emt 0:00:14]} 40. Rh2 {[%emt 0:00:16]} e4 {[%emt 0:01:21]} 41. Rh3 {[%emt 0:00:22]} e3 {[%emt 0:00:24]} 42. Rh2 {[%emt 0:00:23]} e2 {[%emt 0:00:18]} 43. Rh3 {[%emt 0:00:09]} e1=Q {[%emt 0:00:19]} 44. Rxe1 {[%emt 0:00:26]} Qxg2# {[%emt 0:00:09]} 0-1

[Event "DVM U10 2024"]
[Site "Duesseldorf"]
[Date "2024.12.28"]
[Round "5"]
[White "Bentele, Otto"]
[Black "Sauer, Ben"]
[Result "0-1"]
[ECO "B46"]
[WhiteElo "1522"]
[BlackElo "1645"]
[Annotator "NA RC"]
[PlyCount "88"]
[EventDate "2024.12.23"]
[EventType "team-tourn"]
[EventRounds "7"]
[EventCountry "GER"]
[SourceTitle "playchess.com"]
[Source "ChessBase"]
[SourceQuality "1"]
[TimeControl "3300+5"]

1. e4 {[%emt 0:00:02]} c5 {[%emt 0:00:06]} 2. Nf3 {[%emt 0:00:16]} e6 {[%emt 0:00:09]} 3. d4 {[%emt 0:00:29]} cxd4 {[%emt 0:00:05]} 4. Nxd4 {[%emt 0:00:38]} a6 {[%emt 0:00:10]} 5. Nc3 {[%emt 0:00:36]} Qc7 {[%emt 0:00:32]} 6. Bd3 {[%emt 0:00:21]} Nc6 {[%emt 0:00:20]} 7. Nxc6 {[%emt 0:00:42]} bxc6 {[%emt 0:00:13]} 8. O-O {[%emt 0:00:18]} Nf6 {[%emt 0:00:48]} 9. b3 {[%emt 0:00:58]} Be7 {[%emt 0:01:06]} 10. Bb2 {[%emt 0:00:31]} O-O {[%emt 0:00:58]} 11. h3 {[%emt 0:00:44]} d5 {[%emt 0:02:52]} 12. Re1 {[%emt 0:00:50]} Bb7 {[%emt 0:02:16]} 13. e5 {[%emt 0:01:20]} Nd7 {[%emt 0:00:55]} 14. Nb1 {[%emt 0:00:51]} c5 {[%emt 0:02:47]} 15. c4 {[%emt 0:03:23]} d4 {[%emt 0:01:45]} 16. Qh5 {[%emt 0:01:50]} g6 {[%emt 0:02:14]} 17. Qd1 {[%emt 0:00:38]} Nxe5 {[%emt 0:01:03]} 18. Be4 {[%emt 0:01:08]} Nd7 {[%emt 0:05:24]} 19. Qf3 {[%emt 0:01:24]} Bxe4 {[%emt 0:01:03]} 20. Qxe4 {[%emt 0:01:46]} Nf6 {[%emt 0:02:06]} 21. Qf3 {[%emt 0:01:16]} Rfe8 {[%emt 0:02:40]} 22. Nd2 {[%emt 0:01:22]} Rad8 {[%emt 0:01:24]} 23. Rad1 {[%emt 0:01:04]} Nd7 {[%emt 0:02:30]} 24. Ne4 {[%emt 0:01:46]} e5 {[%emt 0:02:17]} 25. Ng3 {[%emt 0:02:36]} Bf8 {[%emt 0:01:36]} 26. Ne4 {[%emt 0:00:24]} Bg7 {[%emt 0:00:47]} 27. Ng5 {[%emt 0:00:51]} Re7 {[%emt 0:02:02]} 28. Ne4 {[%emt 0:02:14]} f5 {[%emt 0:02:05]} 29. Nd2 {[%emt 0:01:19]} e4 {[%emt 0:01:15]} 30. Qg3 {[%emt 0:01:29]} Qxg3 {[%emt 0:04:09]} 31. fxg3 {[%emt 0:00:20]} Ne5 {[%emt 0:00:44]} 32. h4 {[%emt 0:00:38]} Nd3 {[%emt 0:00:18]} 33. Rb1 {[%emt 0:00:25]} Nxe1 {[%emt 0:00:19]} 34. Rxe1 {[%emt 0:00:35]} Bh6 {[%emt 0:01:05]} 35. Nf1 {[%emt 0:00:19]} Kf7 {[%emt 0:00:38]} 36. Kh1 {[%emt 0:00:43]} e3 {[%emt 0:00:35]} 37. Nxe3 {[%emt 0:00:29]} dxe3 {[%emt 0:00:13]} 38. Re2 {[%emt 0:00:28]} Rd2 {[%emt 0:00:13]} 39. Rxe3 {[%emt 0:00:08]} Bxe3 {[%emt 0:00:26]} 40. Bc3 {[%emt 0:00:13]} Rc2 {[%emt 0:00:09]} 41. Ba5 {[%emt 0:00:15]} Bf2 {[%emt 0:00:16]} 42. Kh2 {[%emt 0:00:28]} Rd7 {[%emt 0:00:12]} 43. Kh3 {[%emt 0:00:54]} Rd1 {[%emt 0:00:06]} 44. Bd2 {[%emt 0:00:32]} Rh1# {[%emt 0:00:13]} 0-1

[Event "DVM U10 2024"]
[Site "Duesseldorf"]
[Date "2024.12.28"]
[Round "5"]
[White "Pawlus, Daniel"]
[Black "Glavev, Victor"]
[Result "1-0"]
[ECO "D02"]
[WhiteElo "1521"]
[BlackElo "1443"]
[Annotator "NA RC"]
[PlyCount "73"]
[EventDate "2024.12.23"]
[EventType "team-tourn"]
[EventRounds "7"]
[EventCountry "GER"]
[SourceTitle "playchess.com"]
[Source "ChessBase"]
[SourceQuality "1"]
[TimeControl "3300+5"]

1. d4 {[%emt 0:00:04]} d5 {[%emt 0:00:02]} 2. c4 {[%emt 0:00:19]} c6 {[%emt 0:00:26]} 3. Nc3 {[%emt 0:00:07]} Nf6 {[%emt 0:00:19]} 4. Nf3 {[%emt 0:00:52]} Bf5 {[%emt 0:00:00]} 5. Qb3 {[%emt 0:00:49]} Qb6 {[%emt 0:00:19]} 6. c5 {[%emt 0:00:15]} Qxb3 {[%emt 0:00:23]} 7. axb3 {[%emt 0:00:08]} e6 {[%emt 0:01:53]} 8. Bf4 {[%emt 0:01:57]} Nbd7 {[%emt 0:00:35]} 9. e3 {[%emt 0:01:41]} h6 {[%emt 0:01:04]} 10. b4 {[%emt 0:01:09]} Ne4 {[%emt 0:02:41]} 11. Nxe4 {[%emt 0:00:51]} dxe4 {[%emt 0:00:11]} 12. Ne5 {[%emt 0:00:34]} Nxe5 {[%emt 0:00:42]} 13. Bxe5 {[%emt 0:00:38]} f6 {[%emt 0:00:46]} 14. Bg3 {[%emt 0:00:50]} Be7 {[%emt 0:00:21]} 15. b5 {[%emt 0:00:50]} O-O {[%emt 0:00:29]} 16. bxc6 {[%emt 0:00:30]} bxc6 {[%emt 0:00:20]} 17. b4 {[%emt 0:00:24]} Rfd8 {[%emt 0:03:30]} 18. b5 {[%emt 0:00:48]} Rdc8 {[%emt 0:04:19]} 19. bxc6 {[%emt 0:01:25]} Rxc6 {[%emt 0:00:12]} 20. Bb5 {[%emt 0:00:34]} Rcc8 {[%emt 0:01:40]} 21. c6 {[%emt 0:01:02]} Bb4+ {[%emt 0:01:09]} 22. Ke2 {[%emt 0:00:21]} Bc3 {[%emt 0:01:09]} 23. Ra2 {[%emt 0:00:23]} Bg4+ {[%emt 0:00:26]} 24. f3 {[%emt 0:00:07]} exf3+ {[%emt 0:00:14]} 25. gxf3 {[%emt 0:00:11]} Bh5 {[%emt 0:01:35]} 26. c7 {[%emt 0:00:25]} a5 {[%emt 0:01:13]} 27. Bd7 {[%emt 0:01:34]} Rf8 {[%emt 0:00:18]} 28. Bd6 {[%emt 0:00:34]} Rfd8 {[%emt 0:00:35]} 29. cxd8=Q+ {[%emt 0:00:32]} Rxd8 {[%emt 0:00:19]} 30. Bxe6+ {[%emt 0:00:12]} Kh8 {[%emt 0:00:16]} 31. Bc5 {[%emt 0:00:51]} Be8 {[%emt 0:03:38]} 32. Rc1 {[%emt 0:01:03]} Bb4 {[%emt 0:00:38]} 33. Bxb4 {[%emt 0:00:42]} axb4 {[%emt 0:00:06]} 34. Rb2 {[%emt 0:00:29]} Rb8 {[%emt 0:01:34]} 35. Rc8 {[%emt 0:00:22]} Rxc8 {[%emt 0:02:27]} 36. Bxc8 {[%emt 0:00:08]} Bh5 {[%emt 0:03:13]} 37. Rxb4 {[%emt 0:00:21]} 1-0

[Event "DVM U10 2024"]
[Site "Duesseldorf"]
[Date "2024.12.28"]
[Round "5"]
[White "Stopp, Bruno"]
[Black "Roessling, Johannes"]
[Result "1-0"]
[ECO "C24"]
[WhiteElo "1519"]
[BlackElo "1618"]
[Annotator "NA RC"]
[PlyCount "69"]
[EventDate "2024.12.23"]
[EventType "team-tourn"]
[EventRounds "7"]
[EventCountry "GER"]
[SourceTitle "playchess.com"]
[Source "ChessBase"]
[SourceQuality "1"]
[TimeControl "3300+5"]

1. e4 {[%emt 0:00:02]} e5 {[%emt 0:00:03]} 2. Nf3 {[%emt 0:00:06]} Nc6 {[%emt 0:00:04]} 3. Bc4 {[%emt 0:00:05]} Nf6 {[%emt 0:00:05]} 4. d3 {[%emt 0:00:07]} d5 {[%emt 0:00:06]} 5. exd5 {[%emt 0:02:39]} Nxd5 {[%emt 0:00:06]} 6. O-O {[%emt 0:02:29]} Bc5 {[%emt 0:00:08]} 7. Bxd5 {[%emt 0:01:39]} Qxd5 {[%emt 0:00:30]} 8. Nc3 {[%emt 0:00:42]} Qd8 {[%emt 0:00:57]} 9. Be3 {[%emt 0:00:10]} Bb6 {[%emt 0:01:36]} 10. h3 {[%emt 0:01:39]} Bf5 {[%emt 0:03:05]} 11. Qd2 {[%emt 0:00:54]} O-O {[%emt 0:02:43]} 12. Rad1 {[%emt 0:01:11]} Re8 {[%emt 0:03:40]} 13. Ne4 {[%emt 0:05:30]} Qd7 {[%emt 0:05:01]} 14. c3 {[%emt 0:06:27]} Rad8 {[%emt 0:03:35]} 15. Qc2 {[%emt 0:03:53]} h6 {[%emt 0:06:07]} 16. Rfe1 {[%emt 0:03:54]} Bh7 {[%emt 0:07:11]} 17. Bxh6 {[%emt 0:01:54]} Qe6 {[%emt 0:06:16]} 18. Be3 {[%emt 0:03:01]} Rd7 {[%emt 0:09:01]} 19. Nfg5 {[%emt 0:01:19]} Qe7 {[%emt 0:01:01]} 20. Nxh7 {[%emt 0:00:13]} Kxh7 {[%emt 0:00:09]} 21. d4 {[%emt 0:00:52]} Kg8 {[%emt 0:01:00]} 22. Ng5 {[%emt 0:01:52]} g6 {[%emt 0:01:48]} 23. Nf3 {[%emt 0:01:58]} exd4 {[%emt 0:01:35]} 24. Bxd4 {[%emt 0:02:03]} Qd8 {[%emt 0:00:20]} 25. Rxe8+ {[%emt 0:02:45]} Qxe8 {[%emt 0:00:07]} 26. Re1 {[%emt 0:01:09]} Qd8 {[%emt 0:00:13]} 27. Bxb6 {[%emt 0:04:24]} axb6 {[%emt 0:00:02]} 28. Qe4 {[%emt 0:00:49]} Re7 {[%emt 0:00:21]} 29. Qb1 {[%emt 0:00:49]} Rxe1+ {[%emt 0:00:05]} 30. Qxe1 {[%emt 0:00:06]} Qd5 {[%emt 0:00:16]} 31. Qe8+ {[%emt 0:00:14]} Kg7 {[%emt 0:00:01]} 32. Qc8 {[%emt 0:00:16]} Qxa2 {[%emt 0:00:19]} 33. Qxb7 {[%emt 0:00:06]} Ne7 {[%emt 0:00:03]} 34. Qxc7 {[%emt 0:00:03]} Nf5 {[%emt 0:00:02]} 35. Qxb6 {[%emt 0:00:05]} 1-0

[Event "DVM U10 2024"]
[Site "Duesseldorf"]
[Date "2024.12.28"]
[Round "5"]
[White "Zielke, Antonin"]
[Black "Baskurt, Ayaz"]
[Result "0-1"]
[ECO "B15"]
[WhiteElo "1519"]
[BlackElo "903"]
[Annotator "NA RC"]
[PlyCount "74"]
[EventDate "2024.12.23"]
[EventType "team-tourn"]
[EventRounds "7"]
[EventCountry "GER"]
[SourceTitle "playchess.com"]
[Source "ChessBase"]
[SourceQuality "1"]
[TimeControl "3300+5"]

1. e4 {[%emt 0:00:01]} c6 {[%emt 0:00:08]} 2. d4 {[%emt 0:00:08]} d5 {[%emt 0:00:13]} 3. Nc3 {[%emt 0:00:11]} Nf6 {[%emt 0:00:29]} 4. Bd3 {[%emt 0:00:16]} Bg4 {[%emt 0:00:12]} 5. f3 {[%emt 0:00:35]} Bh5 {[%emt 0:00:56]} 6. Nge2 {[%emt 0:00:14]} e6 {[%emt 0:00:33]} 7. e5 {[%emt 0:00:13]} Bb4 {[%emt 0:01:57]} 8. Be3 {[%emt 0:00:28]} O-O {[%emt 0:03:12]} 9. exf6 {[%emt 0:00:17]} Qxf6 {[%emt 0:03:23]} 10. Qd2 Nd7 {[%emt 0:00:00]} 11. O-O-O {[%emt 0:00:15]} e5 {[%emt 0:09:38]} 12. dxe5 {[%emt 0:00:20]} Qxe5 {[%emt 0:01:39]} 13. a3 {[%emt 0:01:11]} Ba5 {[%emt 0:00:12]} 14. b4 {[%emt 0:00:19]} Bc7 {[%emt 0:00:20]} 15. f4 {[%emt 0:00:32]} Qf6 {[%emt 0:00:32]} 16. g3 {[%emt 0:00:40]} Bxe2 {[%emt 0:00:26]} 17. Bxe2 {[%emt 0:00:27]} b6 {[%emt 0:02:40]} 18. Qd4 {[%emt 0:00:08]} Qd6 {[%emt 0:00:47]} 19. Bg4 {[%emt 0:00:36]} Nf6 {[%emt 0:02:16]} 20. Be2 {[%emt 0:00:39]} Rfe8 {[%emt 0:02:27]} 21. Bf2 {[%emt 0:02:13]} Rad8 {[%emt 0:01:15]} 22. b5 {[%emt 0:01:38]} c5 {[%emt 0:03:34]} 23. Qd3 {[%emt 0:00:32]} c4 {[%emt 0:00:25]} 24. Qd4 {[%emt 0:00:31]} Ne4 {[%emt 0:00:22]} 25. Bf3 {[%emt 0:01:49]} Nxf2 {[%emt 0:00:42]} 26. Qxf2 {[%emt 0:01:42]} Qxa3+ {[%emt 0:00:22]} 27. Kd2 {[%emt 0:00:11]} d4 {[%emt 0:00:25]} 28. Ne4 {[%emt 0:01:37]} Bd6 {[%emt 0:01:00]} 29. Ke1 {[%emt 0:01:58]} f5 {[%emt 0:01:03]} 30. Qxd4 {[%emt 0:03:43]} Bb4+ {[%emt 0:00:21]} 31. Rd2 {[%emt 0:00:59]} Rxd4 {[%emt 0:00:30]} 32. Kf1 {[%emt 0:00:38]} Bxd2 {[%emt 0:00:19]} 33. Ng5 {[%emt 0:00:50]} Re1+ {[%emt 0:00:29]} 34. Kg2 {[%emt 0:00:20]} Rxh1 {[%emt 0:00:26]} 35. Kxh1 {[%emt 0:00:11]} h6 {[%emt 0:00:26]} 36. Ne6 {[%emt 0:00:34]} Qxf3+ {[%emt 0:00:13]} 37. Kg1 {[%emt 0:00:12]} Be3# {[%emt 0:00:15]} 0-1

[Event "DVM U10 2024"]
[Site "Duesseldorf"]
[Date "2024.12.28"]
[Round "5"]
[White "Hantke, Florian"]
[Black "Liu, Yichen"]
[Result "1-0"]
[ECO "B13"]
[WhiteElo "1517"]
[BlackElo "1500"]
[Annotator "NA RC"]
[PlyCount "85"]
[EventDate "2024.12.23"]
[EventType "team-tourn"]
[EventRounds "7"]
[EventCountry "GER"]
[SourceTitle "playchess.com"]
[Source "ChessBase"]
[SourceQuality "1"]
[TimeControl "3300+5"]

1. e4 {[%emt 0:00:04]} c6 {[%emt 0:00:08]} 2. d4 {[%emt 0:00:08]} d5 {[%emt 0:00:08]} 3. exd5 {[%emt 0:00:05]} cxd5 {[%emt 0:00:06]} 4. c4 {[%emt 0:00:03]} Nf6 {[%emt 0:00:26]} 5. Nc3 {[%emt 0:00:11]} dxc4 {[%emt 0:00:27]} 6. Bxc4 {[%emt 0:00:05]} Bf5 {[%emt 0:00:19]} 7. Nf3 {[%emt 0:00:11]} e6 {[%emt 0:00:15]} 8. Bg5 {[%emt 0:00:17]} Be7 {[%emt 0:00:13]} 9. O-O {[%emt 0:00:10]} Nc6 {[%emt 0:00:10]} 10. Bb5 {[%emt 0:01:52]} O-O {[%emt 0:00:13]} 11. Re1 {[%emt 0:00:24]} a6 {[%emt 0:00:26]} 12. Ba4 {[%emt 0:00:29]} h6 {[%emt 0:00:42]} 13. Bh4 {[%emt 0:00:19]} Qc7 {[%emt 0:00:50]} 14. Bg3 {[%emt 0:02:34]} Qb6 {[%emt 0:00:17]} 15. Bxc6 {[%emt 0:00:42]} bxc6 {[%emt 0:00:50]} 16. Qd2 {[%emt 0:07:08]} Rfd8 {[%emt 0:00:20]} 17. Rad1 {[%emt 0:00:24]} Rab8 {[%emt 0:00:36]} 18. Ne5 {[%emt 0:01:13]} Rbc8 {[%emt 0:01:22]} 19. Nf3 {[%emt 0:01:59]} c5 {[%emt 0:01:07]} 20. d5 {[%emt 0:00:41]} Bd6 {[%emt 0:01:10]} 21. Bh4 {[%emt 0:01:40]} Kh7 {[%emt 0:05:01]} 22. Qc1 {[%emt 0:03:04]} Qb7 {[%emt 0:02:35]} 23. dxe6 {[%emt 0:01:05]} Bxe6 {[%emt 0:00:21]} 24. Qc2+ {[%emt 0:00:33]} Kg8 {[%emt 0:00:23]} 25. Qc1 {[%emt 0:01:44]} Be7 {[%emt 0:01:24]} 26. Ne5 {[%emt 0:03:05]} Qc7 {[%emt 0:01:20]} 27. Bg3 {[%emt 0:02:02]} Bd6 {[%emt 0:00:25]} 28. Qe3 {[%emt 0:04:35]} Re8 {[%emt 0:05:04]} 29. Qd2 {[%emt 0:02:38]} Rcd8 {[%emt 0:00:21]} 30. Qf4 {[%emt 0:01:31]} Bc8 {[%emt 0:02:07]} 31. Qe3 {[%emt 0:04:37]} Re7 {[%emt 0:00:53]} 32. Bf4 {[%emt 0:02:29]} Kh7 {[%emt 0:01:04]} 33. Qd3+ {[%emt 0:01:18]} g6 {[%emt 0:00:29]} 34. Nf3 {[%emt 0:00:26]} Rxe1+ {[%emt 0:01:32]} 35. Nxe1 {[%emt 0:00:05]} Ne8 {[%emt 0:02:11]} 36. Ne4 {[%emt 0:01:46]} Bf5 {[%emt 0:00:15]} 37. Bxd6 {[%emt 0:01:06]} Nxd6 {[%emt 0:01:02]} 38. Nf6+ {[%emt 0:00:33]} Kg7 {[%emt 0:00:29]} 39. Qc3 {[%emt 0:00:04]} Kf8 {[%emt 0:01:26]} 40. Nh7+ {[%emt 0:00:24]} Kg8 {[%emt 0:00:35]} 41. Nf6+ {[%emt 0:00:02]} Kf8 {[%emt 0:00:41]} 42. Nd5 {[%emt 0:00:10]} Qc6 {[%emt 0:00:49]} 43. Qh8# {[%emt 0:00:02]} 1-0

[Event "DVM U10 2024"]
[Site "Duesseldorf"]
[Date "2024.12.28"]
[Round "5"]
[White "Dintinger, Ata Lucien"]
[Black "Luible, Sebastian"]
[Result "1-0"]
[ECO "C25"]
[WhiteElo "1511"]
[BlackElo "1104"]
[Annotator "NA RC"]
[PlyCount "49"]
[EventDate "2024.12.23"]
[EventType "team-tourn"]
[EventRounds "7"]
[EventCountry "GER"]
[SourceTitle "playchess.com"]
[Source "ChessBase"]
[SourceQuality "1"]
[TimeControl "3300+5"]

1. e4 {[%emt 0:00:02]} e5 {[%emt 0:00:05]} 2. Nc3 {[%emt 0:00:03]} Bb4 {[%emt 0:00:14]} 3. f4 {[%emt 0:00:16]} d6 {[%emt 0:00:11]} 4. Nf3 {[%emt 0:00:09]} Nf6 {[%emt 0:00:27]} 5. Bc4 {[%emt 0:00:19]} Bg4 {[%emt 0:00:27]} 6. d3 {[%emt 0:00:27]} O-O {[%emt 0:01:19]} 7. h3 {[%emt 0:00:28]} Bxf3 {[%emt 0:00:26]} 8. gxf3 {[%emt 0:00:08]} Nh5 {[%emt 0:01:56]} 9. h4 {[%emt 0:00:33]} Nd7 {[%emt 0:00:53]} 10. Be3 {[%emt 0:01:25]} exf4 {[%emt 0:00:45]} 11. Bd4 {[%emt 0:01:43]} c5 {[%emt 0:00:41]} 12. Bxg7 {[%emt 0:00:52]} Nxg7 {[%emt 0:00:24]} 13. Qd2 {[%emt 0:00:16]} Nf6 {[%emt 0:01:10]} 14. O-O-O {[%emt 0:00:36]} Nfh5 {[%emt 0:00:42]} 15. Rdg1 {[%emt 0:00:22]} Ng3 {[%emt 0:00:59]} 16. Rh3 {[%emt 0:00:25]} Qa5 {[%emt 0:01:33]} 17. Qxf4 {[%emt 0:01:06]} Bxc3 {[%emt 0:01:02]} 18. Rhxg3 {[%emt 0:00:19]} Bxb2+ {[%emt 0:04:47]} 19. Kxb2 {[%emt 0:01:01]} Qb4+ {[%emt 0:00:44]} 20. Bb3 {[%emt 0:00:16]} Qd4+ {[%emt 0:00:25]} 21. c3 {[%emt 0:00:15]} Qxd3 {[%emt 0:01:35]} 22. Rxg7+ {[%emt 0:00:13]} Kh8 {[%emt 0:00:10]} 23. Rxh7+ {[%emt 0:00:25]} Kxh7 {[%emt 0:00:08]} 24. Qf5+ {[%emt 0:00:04]} Kh8 {[%emt 0:00:34]} 25. Qh5# {[%emt 0:00:06]} 1-0

[Event "DVM U10 2024"]
[Site "Duesseldorf"]
[Date "2024.12.28"]
[Round "5"]
[White "Breaz, Albert"]
[Black "Zielke, Mika"]
[Result "1-0"]
[ECO "C50"]
[WhiteElo "1494"]
[BlackElo "1623"]
[Annotator "NA RC"]
[PlyCount "163"]
[EventDate "2024.12.23"]
[EventType "team-tourn"]
[EventRounds "7"]
[EventCountry "GER"]
[SourceTitle "playchess.com"]
[Source "ChessBase"]
[SourceQuality "1"]
[TimeControl "3300+5"]

1. e4 {[%emt 0:00:15]} e5 {[%emt 0:00:11]} 2. Nf3 {[%emt 0:00:03]} Nc6 {[%emt 0:00:05]} 3. Bc4 {[%emt 0:00:33]} Nf6 {[%emt 0:00:09]} 4. d3 {[%emt 0:00:05]} Bc5 {[%emt 0:00:10]} 5. O-O {[%emt 0:00:11]} d6 {[%emt 0:00:17]} 6. Nc3 {[%emt 0:00:14]} Bg4 {[%emt 0:00:37]} 7. h3 {[%emt 0:00:05]} Bh5 {[%emt 0:00:06]} 8. Bg5 {[%emt 0:00:44]} Nd4 {[%emt 0:00:31]} 9. g4 {[%emt 0:02:00]} Bg6 {[%emt 0:00:30]} 10. Nd5 {[%emt 0:00:15]} h6 {[%emt 0:00:57]} 11. Bh4 {[%emt 0:00:26]} Bh7 {[%emt 0:00:40]} 12. Nxf6+ {[%emt 0:02:13]} gxf6 {[%emt 0:00:15]} 13. Nxd4 {[%emt 0:00:07]} Bxd4 {[%emt 0:00:24]} 14. Qf3 {[%emt 0:00:12]} Qd7 {[%emt 0:01:21]} 15. Qxf6 {[%emt 0:06:39]} Rg8 {[%emt 0:02:04]} 16. Kh2 {[%emt 0:00:45]} Bg6 {[%emt 0:01:17]} 17. c3 {[%emt 0:01:50]} Bb6 {[%emt 0:00:27]} 18. d4 {[%emt 0:00:33]} exd4 {[%emt 0:07:47]} 19. cxd4 {[%emt 0:00:59]} c6 {[%emt 0:01:32]} 20. d5 {[%emt 0:02:08]} Bd8 {[%emt 0:01:24]} 21. dxc6 {[%emt 0:02:57]} bxc6 {[%emt 0:00:14]} 22. Qf4 {[%emt 0:02:11]} Bxh4 {[%emt 0:00:09]} 23. Rad1 {[%emt 0:02:15]} Bg5 {[%emt 0:00:35]} 24. Qf3 {[%emt 0:00:52]} Qe7 {[%emt 0:01:57]} 25. e5 {[%emt 0:01:10]} d5 {[%emt 0:02:57]} 26. Bb3 {[%emt 0:01:53]} Qxe5+ {[%emt 0:02:02]} 27. Kg1 {[%emt 0:00:28]} Be4 {[%emt 0:00:38]} 28. Qe2 {[%emt 0:00:54]} Bf4 {[%emt 0:00:41]} 29. f3 {[%emt 0:01:26]} Bh7 {[%emt 0:14:04]} 30. Qxe5+ {[%emt 0:00:07]} Bxe5 {[%emt 0:00:01]} 31. Rfe1 {[%emt 0:00:16]} f6 {[%emt 0:00:31]} 32. f4 {[%emt 0:00:05]} Be4 {[%emt 0:00:25]} 33. fxe5 {[%emt 0:00:24]} fxe5 {[%emt 0:00:09]} 34. Rxe4 {[%emt 0:00:04]} dxe4 {[%emt 0:00:17]} 35. Bxg8 {[%emt 0:00:06]} Ke7 {[%emt 0:00:13]} 36. Bh7 {[%emt 0:00:11]} Rb8 {[%emt 0:00:09]} 37. Bxe4 {[%emt 0:00:15]} Rxb2 {[%emt 0:00:05]} 38. Bxc6 {[%emt 0:00:04]} Rxa2 {[%emt 0:00:13]} 39. Rd7+ {[%emt 0:00:21]} Kf6 {[%emt 0:00:15]} 40. Rd6+ {[%emt 0:00:22]} Kg5 {[%emt 0:00:17]} 41. Re6 {[%emt 0:00:48]} Re2 {[%emt 0:00:20]} 42. Kf1 {[%emt 0:00:21]} Re3 {[%emt 0:00:12]} 43. Kf2 {[%emt 0:00:11]} Rxh3 {[%emt 0:00:25]} 44. Rxe5+ {[%emt 0:00:03]} Kf6 {[%emt 0:00:27]} 45. Rf5+ {[%emt 0:00:10]} Kg7 {[%emt 0:00:16]} 46. Bf3 {[%emt 0:00:04]} Rh2+ {[%emt 0:00:21]} 47. Bg2 {[%emt 0:00:06]} h5 {[%emt 0:00:24]} 48. Kg3 {[%emt 0:00:09]} Rxg2+ {[%emt 0:00:25]} 49. Kxg2 {[%emt 0:00:05]} hxg4 {[%emt 0:00:07]} 50. Rg5+ {[%emt 0:00:04]} Kf6 {[%emt 0:00:13]} 51. Rxg4 {[%emt 0:00:05]} Ke5 {[%emt 0:00:11]} 52. Ra4 {[%emt 0:00:04]} Kd5 {[%emt 0:00:05]} 53. Rxa7 {[%emt 0:00:09]} Ke4 {[%emt 0:00:05]} 54. Ra5 {[%emt 0:00:22]} Kd4 {[%emt 0:00:06]} 55. Ra3 {[%emt 0:00:12]} Ke4 {[%emt 0:00:16]} 56. Kf2 {[%emt 0:00:11]} Kd4 {[%emt 0:00:05]} 57. Ke2 {[%emt 0:00:05]} Kc4 {[%emt 0:00:09]} 58. Kd2 {[%emt 0:00:05]} Kd4 {[%emt 0:00:05]} 59. Ra4+ {[%emt 0:00:07]} Kd5 {[%emt 0:00:09]} 60. Kc3 {[%emt 0:00:08]} Ke5 {[%emt 0:00:05]} 61. Kd3 {[%emt 0:00:30]} Kf5 {[%emt 0:00:24]} 62. Ke3 {[%emt 0:00:10]} Kg5 {[%emt 0:00:10]} 63. Kf3 {[%emt 0:00:12]} Kf5 {[%emt 0:00:06]} 64. Ra5+ {[%emt 0:00:15]} Ke6 {[%emt 0:00:07]} 65. Kf4 {[%emt 0:00:11]} Kd6 {[%emt 0:00:05]} 66. Ke4 {[%emt 0:00:06]} Kc6 {[%emt 0:00:05]} 67. Kd4 {[%emt 0:00:09]} Kd6 {[%emt 0:00:09]} 68. Ra6+ {[%emt 0:00:04]} Ke7 {[%emt 0:00:07]} 69. Kd5 {[%emt 0:00:08]} Kf7 {[%emt 0:00:05]} 70. Ke5 {[%emt 0:00:05]} Kg7 {[%emt 0:00:04]} 71. Kf5 {[%emt 0:00:04]} Kh7 {[%emt 0:00:04]} 72. Kg5 {[%emt 0:00:06]} Kg7 {[%emt 0:00:05]} 73. Ra7+ {[%emt 0:00:04]} Kf8 {[%emt 0:00:04]} 74. Kg6 {[%emt 0:00:08]} Ke8 {[%emt 0:00:05]} 75. Kf6 {[%emt 0:00:08]} Kd8 {[%emt 0:00:04]} 76. Ke6 {[%emt 0:00:05]} Kc8 {[%emt 0:00:04]} 77. Kd6 {[%emt 0:00:17]} Kb8 {[%emt 0:00:05]} 78. Rh7 {[%emt 0:00:08]} Kc8 {[%emt 0:00:03]} 79. Rg7 {[%emt 0:00:06]} Kb8 {[%emt 0:00:05]} 80. Kc6 {[%emt 0:01:14]} Ka8 {[%emt 0:00:05]} 81. Kb6 {[%emt 0:00:06]} Kb8 {[%emt 0:00:03]} 82. Rg8# {[%emt 0:00:05]} 1-0